[Event "I Maxistral Compostela 2018"]
[Site "Santiago Compostela"]
[Date "2018.09.05"]
[Round "1"]
[White "Reinaldo Castineira, Roi"]
[Black "Suarez Pousa, Diego"]
[Result "1-0"]
[ECO "E20"]
[WhiteElo "2493"]
[BlackElo "2412"]
[Annotator "RC"]
[PlyCount "111"]
[EventDate "2018.09.05"]
[EventType "tourn"]
[EventCountry "ESP"]
[SourceTitle "playchess.com"]
[Source "ChessBase"]
[SourceQuality "1"]
[TimeControl "5400+30"]

1. d4 {[%emt 0:00:00]} Nf6 {[%emt 0:00:00]} 2. c4 {[%emt 0:00:55]} e6 {[%emt 0:00:00]} 3. Nc3 {[%emt 0:00:19]} Bb4 {[%emt 0:00:17]} 4. f3 {[%emt 0:00:18]} c5 {[%emt 0:00:48]} 5. d5 {[%emt 0:00:15]} d6 {[%emt 0:01:17]} 6. e4 {[%emt 0:01:18]} Bxc3+ {[%emt 0:00:55]} 7. bxc3 {[%emt 0:00:13]} e5 {[%emt 0:00:23]} 8. Bd3 {[%emt 0:12:40]} Nh5 {[%emt 0:05:03]} 9. Ne2 {[%emt 0:10:13]} O-O {[%emt 0:04:22]} 10. g4 {[%emt 0:13:55]} Qh4+ {[%emt 0:03:53]} 11. Kf1 {[%emt 0:00:05]} Nf6 {[%emt 0:16:02]} 12. Kg2 {[%emt 0:05:35]} g6 {[%emt 0:06:03]} 13. Be3 {[%emt 0:14:18]} Ne8 {[%emt 0:03:08]} 14. Qd2 {[%emt 0:00:48]} Qe7 {[%emt 0:02:23]} 15. Ng3 {[%emt 0:00:31]} Ng7 {[%emt 0:01:42]} 16. Bh6 {[%emt 0:03:56]} f6 {[%emt 0:05:51]} 17. Kf2 {[%emt 0:02:29]} Rf7 {[%emt 0:02:29]} 18. Rag1 {[%emt 0:00:07]} Kf8 {[%emt 0:07:52]} 19. Nf5 {[%emt 0:09:33]} gxf5 {[%emt 0:06:31]} 20. gxf5 {[%emt 0:00:03]} Ke8 {[%emt 0:04:20]} 21. Bxg7 {[%emt 0:01:20]} Rxg7 {[%emt 0:03:13]} 22. Qh6 {[%emt 0:00:03]} Rf7 {[%emt 0:03:28]} 23. Rg8+ {[%emt 0:00:05]} Kd7 {[%emt 0:06:20]} 24. Rhg1 {[%emt 0:00:05]} Kc7 {[%emt 0:02:14]} 25. R1g7 {[%emt 0:00:51]} Kb6 {[%emt 0:04:04]} 26. Rxf7 {[%emt 0:03:04]} Qxf7 {[%emt 0:00:07]} 27. Rxc8 {[%emt 0:00:08]} a5 {[%emt 0:04:21]} 28. Qf8 {[%emt 0:09:50]} Qxf8 {[%emt 0:01:34]} 29. Rxf8 {[%emt 0:00:03]} Kc7 {[%emt 0:00:14]} 30. Rxf6 {[%emt 0:00:47]} Nd7 {[%emt 0:00:41]} 31. Rf7 {[%emt 0:00:07]} Kd8 {[%emt 0:03:10]} 32. f6 {[%emt 0:03:43]} Ra6 {[%emt 0:00:51]} 33. Bf1 {[%emt 0:00:05]} Ke8 {[%emt 0:00:46]} 34. Re7+ {[%emt 0:02:36]} Kd8 {[%emt 0:00:06]} 35. Rxh7 {[%emt 0:00:10]} Nxf6 {[%emt 0:00:25]} 36. Rxb7 {[%emt 0:00:09]} Nh5 {[%emt 0:00:49]} 37. Bh3 {[%emt 0:00:39]} Nf4 {[%emt 0:00:48]} 38. Bg4 {[%emt 0:00:30]} Ke8 {[%emt 0:01:29]} 39. h4 {[%emt 0:01:16]} Kf8 {[%emt 0:00:11]} 40. h5 {[%emt 0:00:17]} Kg8 {[%emt 0:00:52]} 41. h6 {[%emt 0:01:17]} Ra8 {[%emt 0:00:19]} 42. Bf5 {[%emt 0:00:29]} Rd8 {[%emt 0:00:21]} 43. a4 {[%emt 0:01:04]} Kh8 {[%emt 0:01:16]} 44. Ke1 {[%emt 0:02:49]} Ng2+ {[%emt 0:00:15]} 45. Kd2 {[%emt 0:00:26]} Nh4 {[%emt 0:00:09]} 46. Bg4 {[%emt 0:01:04]} Rf8 {[%emt 0:00:31]} 47. Ra7 {[%emt 0:00:44]} Nxf3+ {[%emt 0:00:52]} 48. Bxf3 {[%emt 0:00:53]} Rxf3 {[%emt 0:00:07]} 49. Rxa5 {[%emt 0:00:02]} Rh3 {[%emt 0:00:33]} 50. Ra8+ {[%emt 0:00:22]} Kh7 {[%emt 0:00:10]} 51. Rd8 {[%emt 0:00:02]} Rxh6 {[%emt 0:01:08]} 52. a5 {[%emt 0:00:01]} Rh2+ {[%emt 0:00:12]} 53. Kd3 {[%emt 0:00:11]} Rh3+ {[%emt 0:01:01]} 54. Kc2 {[%emt 0:00:04]} Rh2+ {[%emt 0:00:29]} 55. Kb3 {[%emt 0:00:06]} Rh1 {[%emt 0:00:33]} 56. Rxd6 {[%emt 0:00:43]} 1-0

[Event "I Maxistral Compostela 2018"]
[Site "Santiago Compostela"]
[Date "2018.09.10"]
[Round "6"]
[White "Medarde Santiago, Luis Marcos"]
[Black "Sanchez Aller, Fernando"]
[Result "1-0"]
[ECO "C47"]
[WhiteElo "2341"]
[BlackElo "2344"]
[Annotator "RC"]
[PlyCount "98"]
[EventDate "2018.09.05"]
[EventType "tourn"]
[EventCountry "ESP"]
[SourceTitle "playchess.com"]
[Source "ChessBase"]
[SourceQuality "1"]
[TimeControl "5400+30"]

1. e4 {[%emt 0:00:00]} e5 {[%emt 0:00:00]} 2. Nf3 {[%emt 0:00:00]} Nc6 {[%emt 0:00:00]} 3. Nc3 {[%emt 0:00:39]} Nf6 {[%emt 0:00:03]} 4. d4 {[%emt 0:00:20]} exd4 {[%emt 0:00:24]} 5. Nxd4 {[%emt 0:00:02]} Bc5 {[%emt 0:00:12]} 6. Be3 {[%emt 0:03:21]} Bb6 {[%emt 0:00:05]} 7. Qd2 {[%emt 0:01:41]} O-O {[%emt 0:02:31]} 8. O-O-O {[%emt 0:00:42]} Re8 {[%emt 0:00:30]} 9. f3 {[%emt 0:00:30]} d5 {[%emt 0:05:49]} 10. exd5 {[%emt 0:01:49]} Nxd5 {[%emt 0:01:46]} 11. Bg5 {[%emt 0:00:04]} f6 {[%emt 0:06:57]} 12. Bc4 {[%emt 0:01:27]} Nxd4 {[%emt 0:04:10]} 13. Bxf6 {[%emt 0:00:26]} gxf6 {[%emt 0:03:18]} 14. Nxd5 {[%emt 0:00:10]} Be6 {[%emt 0:01:32]} 15. Nxb6 {[%emt 0:00:06]} axb6 {[%emt 0:00:08]} 16. Qxd4 {[%emt 0:00:09]} Qxd4 {[%emt 0:00:28]} 17. Bxe6+ {[%emt 0:00:02]} Rxe6 {[%emt 0:00:21]} 18. Rxd4 {[%emt 0:00:03]} Rxa2 {[%emt 0:07:29]} 19. Kb1 {[%emt 0:00:02]} Ra5 {[%emt 0:01:09]} 20. Rd7 {[%emt 0:00:06]} Re2 {[%emt 0:00:23]} 21. Rhd1 {[%emt 0:01:30]} Rc5 {[%emt 0:02:04]} 22. R1d2 {[%emt 0:00:05]} Re1+ 23. Ka2 {[%emt 0:03:22]} Re8 {[%emt 0:03:15]} 24. c3 {[%emt 0:14:22]} b5 {[%emt 0:11:23]} 25. Kb3 {[%emt 0:13:47]} b6 {[%emt 0:01:34]} 26. Rd1 {[%emt 0:04:23]} h5 {[%emt 0:02:55]} 27. h4 {[%emt 0:06:33]} Rc4 {[%emt 0:05:03]} 28. g3 {[%emt 0:14:00]} Re3 {[%emt 0:06:00]} 29. R1d5 {[%emt 0:04:27]} Rxf3 {[%emt 0:03:03]} 30. Rxb5 {[%emt 0:01:57]} Rg4 {[%emt 0:04:37]} 31. Rxc7 {[%emt 0:01:07]} Rgxg3 {[%emt 0:03:07]} 32. Rxh5 {[%emt 0:05:40]} Rf2 {[%emt 0:06:04]} 33. Rb5 {[%emt 0:02:13]} Rg7 {[%emt 0:01:24]} 34. Rc8+ {[%emt 0:01:19]} Kf7 {[%emt 0:02:12]} 35. Rxb6 {[%emt 0:00:27]} Rg4 {[%emt 0:00:21]} 36. Rb7+ {[%emt 0:04:24]} Ke6 {[%emt 0:00:11]} 37. h5 {[%emt 0:00:20]} Rgg2 {[%emt 0:01:35]} 38. Ka3 {[%emt 0:00:40]} Rh2 {[%emt 0:00:06]} 39. Rc5 {[%emt 0:00:39]} f5 {[%emt 0:00:20]} 40. h6 {[%emt 0:00:20]} Kd6 {[%emt 0:00:05]} 41. Ra5 {[%emt 0:00:44]} Kc6 42. Rb4 {[%emt 0:03:55]} f4 {[%emt 0:00:21]} 43. Ra6+ {[%emt 0:01:26]} Kc5 {[%emt 0:00:17]} 44. Ra5+ {[%emt 0:00:01]} Kc6 {[%emt 0:00:07]} 45. Ra7 {[%emt 0:00:36]} f3 {[%emt 0:00:17]} 46. h7 {[%emt 0:00:53]} Rf1 {[%emt 0:01:36]} 47. Kb3 {[%emt 0:02:52]} Rb1 {[%emt 0:00:10]} 48. Rf4 {[%emt 0:03:54]} f2 {[%emt 0:06:20]} 49. Rxf2 {[%emt 0:02:56]} Kd5 1-0